Cogmind - Beta 13 @@@ ROGUE MODE // 2024.04.06 @ 16:08:36 Player: weedlord420 Result: Destroyed by Autobeam Turret with Autobeam Performance ------------- Evolutions (0) 0 Regions Visited (2) 400 Robots Destroyed (39) 195 Value Destroyed (851) 851 Prototype IDs (0) 0 Alien Tech Used (0) 0 Bonus (0) 0 TOTAL SCORE: 1446 Bonus ------- None Cogmind --------- Core Integrity 0/250 Matter 36/300 Energy 196/200 System Corruption 0% Temperature Cool (26) Movement Walking (190) Ox1 Location -10/Subcaves Parts ------- > --- POWER (1) -------- Subdweller Power Source > --- PROPULSION (2) --- Aluminum Leg Aluminum Leg > --- UTILITY (2) ------ Medium Storage Unit Makeshift Light Armor Plating > --- WEAPON (2) ------- Battle Rifle Subdweller Shrapnel Launcher > --- INVENTORY (10) --- Ion Engine ECM Suite Makeshift System Restoration Module Riot Gun Subdweller Laser Light Cannon Slug Cannon Rocket Launcher Rocket Launcher Rocket Launcher Peak State ------------ > --- POWER ------------ Ion Engine > --- PROPULSION ------- Aluminum Leg Aluminum Leg > --- UTILITY ---------- Medium Storage Unit Makeshift Light Armor Plating > --- WEAPON ----------- Riot Gun Battle Rifle > --- INVENTORY -------- Subdweller Power Source ECM Suite Makeshift System Restoration Module Assault Rifle Light Cannon Slug Cannon Rocket Launcher Rocket Launcher Rocket Launcher Subdweller Shrapnel Launcher [Rating: 15] Favorites ----------- Power Ion Engine Engine Ion Engine Propulsion Aluminum Leg Leg Aluminum Leg Utility Medium Storage Unit Device Seismic Detector Storage Medium Storage Unit Processor Salvage Targeting Computer Protection Makeshift Light Armor Plating Weapon Light Cannon Energy Gun Riot Gun Ballistic Gun Assault Rifle Ballistic Cannon Light Cannon Launcher Subdweller Shrapnel Launcher Build | -11 -10 -10 ------- Run | Yrd Mat Sub Slots Evolved . | . . . Power . | . . . Propulsion . | . . . Utility . | . . . Weapon . | . . . Parts Attached 42 | 7 10 25 Power 4 | 1 1 2 Engine 4 | 1 1 2 Core . | . . . Reactor . | . . . Propulsion 7 | 2 3 2 Treads . | . . . Leg 7 | 2 3 2 Wheel . | . . . Hover . | . . . Flight . | . . . Utility 8 | 2 3 3 Device 2 | 1 . 1 Storage 2 | 1 1 . Processor 1 | . 1 . Hackware . | . . . Protection 3 | . 1 2 Artifact . | . . . Weapon 23 | 2 3 18 Energy Gun 4 | 1 . 3 Energy Cannon . | . . . Ballistic Gun 7 | 1 1 5 Ballistic Cannon 4 | . 1 3 Launcher 8 | . 1 7 Special Weapon . | . . . Impact Weapon . | . . . Slashing Weapon . | . . . Piercing Weapon . | . . . Special Melee Weapon . | . . . Unidentified Prototypes . | . . . Parts Lost 4 | . . 4 Power 1 | . . 1 Propulsion 1 | . . 1 Utility . | . . . Weapon 2 | . . 2 Highest Loss Streak 2 | . . 2 To Critical Strikes . | . . . Average Slot Usage (%) 99 | . 100 99 Engine 13 | . 14 13 Leg 28 | . 28 28 Device 3 | . 7 . Storage 14 | . 14 14 Processor 5 | . 6 4 Protection 4 | . . 9 Energy Gun 1 | . . 1 Ballistic Gun 12 | . 13 12 Ballistic Cannon 8 | . 13 3 Launcher 5 | . . 11 Naked Turns . | . . . Heaviest Build 29 | 15 23 29 Greatest Support 20 | 20 20 20 Greatest Overweight (x) 1 | . 1 1 Average Overweight (x) . | . . . Largest Inventory Capacity 10 | 8 10 10 Average Capacity 9 | 7 9 10 Most Carried 10 | 4 10 10 Average Carried 8 | . 8 9 Final Capacity 10 | 8 10 10 Final Carried 10 | . 10 10 Class Distribution -------------------- 87% | Mutant 12% | Derelict-Mutant Dominant Class ---------------- Mutant | -10/Materials Mutant | -10/Subcaves Resources | -11 -10 -10 ----------- Run | Yrd Mat Sub Matter Collected 1199 | 178 591 430 Remotely . | . . . Salvage Created 1054 | 90 758 206 Parts 61 | 5 44 12 Haulers Intercepted 2 | . 2 . Recyclers Shooed 3 | 1 2 . Parts Field Recycled . | . . . Retrieved Matter . | . . . Parts Self-Destructed 7 | . . 7 Prevented . | . . . Kills | -11 -10 -10 ------- Run | Yrd Mat Sub Combat Hostiles Destroyed 26 | . 14 12 Guns 6 | . 4 2 Cannons 12 | . 10 2 AOE 8 | . . 8 Classes Destroyed 9 | 2 6 1 Worker 1 | . 1 . Tunneler 1 | 1 . . Hauler 2 | . 2 . Recycler 4 | 1 3 . Operator 2 | . 2 . Watcher 3 | . 3 . Swarmer 10 | . 6 4 Grunt 8 | . 8 . Subdweller 8 | . . 8 Best Kill Streak 4 | 2 4 3 Combat Bots Only 3 | . 3 3 Max Kills in Single Turn 3 | 1 2 3 Gunslinging . | . . . Exploded 3 | . . 3 Melee . | . . . Uniques/NPCs Destroyed . | . . . Combat | -11 -10 -10 -------- Run | Yrd Mat Sub Hostile Shots Fired 113 | . 54 59 Missed 39 | . 17 22 Damage Taken 1213 | . 373 840 Core 252 | . 43 209 Absorbed by Shields . | . . . Regen/Repaired (Parts) 51 | . 51 . Core Remaining (%) 100 | 100 . . Volleys Fired 98 | 6 59 33 Largest 2 | 2 2 2 Hottest 85 | 60 68 85 Shots Fired 184 | 12 119 53 Gun 91 | 12 59 20 Cannon 71 | . 58 13 Launcher 22 | . 2 20 Special . | . . . Kinetic 156 | 6 115 35 Thermal . | . . . Explosive 16 | . 2 14 Electromagnetic 12 | 6 2 4 Robot Hit Streak 10 | 2 8 10 Robot Miss Streak 6 | 3 6 4 Penetration Max . | . . . Secondary Targets . | . . . Shots Hit Robots 86 | 4 58 24 Core Hits 53 | 3 32 18 Critical Kills . | . . . Critical Parts Destroyed . | . . . Critical Strikes 1 | . 1 . Blast 1 | . 1 . Melee Attacks . | . . . Impact . | . . . Slashing . | . . . Piercing . | . . . Sneak Attacks . | . . . Combat Hostiles . | . . . Follow-up Attacks . | . . . Damage Inflicted 2049 | 52 974 1023 Guns 551 | 52 426 73 Cannons 669 | . 504 165 Explosions 829 | . 44 785 Melee . | . . . Ramming . | . . . Kinetic 1370 | 26 901 443 Thermal 92 | . 44 48 Explosive 511 | . . 511 Electromagnetic 76 | 26 29 21 Impact . | . . . Slashing . | . . . Piercing . | . . . Highest Corruption 1 | . 1 1 Average Corruption 1 | . 1 1 Corruption Purged 1 | . . 1 Corruption Blocked . | . . . Effects 24 | . 15 9 Message Errors 7 | . 5 2 Matter Fused 6 | . 5 1 Heat Flow Errors 3 | . 2 1 Energy Discharges 2 | . 1 1 Data Loss (minor) 1 | . . 1 Data Loss (major) 2 | . 1 1 Misfires 2 | . 1 1 Alerts 1 | . . 1 Overload Shots . | . . . Overflow Damage 23 | . . 23 Projectiles . | . . . Explosions 23 | . . 23 Melee . | . . . Knockbacks 4 | . 3 1 Impact . | . . . Kinetic 4 | . 3 1 Secondary . | . . . Self-Inflicted Damage 164 | . . 164 Shots 8 | . . 8 Rammed . | . . . Targets Rammed . | . . . Kicked . | . . . Crushed . | . . . Highest Temperature 263 | . 263 76 Average Temperature 44 | . 44 57 Received Heat Transfer 219 | . 138 81 Effects 2 | . 2 . Interference 2 | . 2 . Siege Activations . | . . . Robots Corrupted . | . . . Combat Hostiles . | . . . Parts Fried . | . . . Impact Corruptions . | . . . Robots Melted . | . . . Combat Hostiles . | . . . Parts Melted . | . . . Heat Transferred 100 | . 50 50 Parts Sabotaged . | . . . Parts Stolen . | . . . Parts Stripped . | . . . Power Chain Reactions 2 | . 1 1 Alert | -11 -10 -10 ------- Run | Yrd Mat Sub Peak Influence 243 | 10 243 . Initial 6 | . 6 . Average 61 | 4 62 . Maximum Alert Level 1 | . 1 . Low Security (%) 99 | 100 99 . Level 1 . | . . . Level 2 . | . . . Level 3 . | . . . Level 4 . | . . . Level 5 . | . . . High Security . | . . . Max Security . | . . . Squads Dispatched 3 | . 3 . Investigation 1 | . 1 . Extermination . | . . . Reinforcement 2 | . 2 . Assault . | . . . Garrison . | . . . Intercept . | . . . Searches Triggered . | . . . Construction Impeded . | . . . Haulers Reinforced . | . . . Active Scanning Responses . | . . . Cargo Convoy Interrupts . | . . . Stealth | -11 -10 -10 --------- Run | Yrd Mat Sub Distress Signals . | . . . Communications Jammed . | . . . Distress Signals . | . . . Times Spotted 42 | . 21 21 Peak Tracking Total 6 | . 6 3 Tactical Retreats 2 | . . 2 Traps | -11 -10 -10 ------- Run | Yrd Mat Sub Traps Triggered 6 | . 1 5 Indirectly . | . . . Trap Hack Attempts . | . . . Triggered . | . . . Disarmed . | . . . Reprogrammed . | . . . Reused . | . . . Traps Extracted . | . . . Installed . | . . . Triggered . | . . . Machines | -11 -10 -10 ---------- Run | Yrd Mat Sub Machines Disabled 5 | . 4 1 Max in Single Turn 1 | . 1 1 Machines Repaired . | . . . Machines Dismantled . | . . . Machines Sabotaged . | . . . Overloaded Fab Kills . | . . . Hacking | -11 -10 -10 --------- Run | Yrd Mat Sub Machines Accessed 4 | . 4 . Terminals 3 | . 3 . Fabricators . | . . . Repair Stations 1 | . 1 . Recycling Units . | . . . Scanalyzers . | . . . Garrison Access . | . . . Total Hacks 10 | . 10 . Successful 7 | . 7 . Failed 3 | . 3 . Catastrophic . | . . . Database Lockouts . | . . . Manual . | . . . Terminals 5 | . 5 . Fabricators . | . . . Repair Stations 5 | . 5 . Recycling Units . | . . . Scanalyzers . | . . . Garrison Access . | . . . Terminal Hacks 4 | . 4 . Record 1 | . 1 . Emergency Access Points 1 | . 1 . Locate Traps 1 | . 1 . Dispatch Records 1 | . 1 . Fabricator Hacks . | . . . Repair Station Hacks 3 | . 3 . Scan Component 2 | . 2 . Repair 1 | . 1 . Recycling Unit Hacks . | . . . Scanalyzer . | . . . Garrison Access Hacks . | . . . Unauthorized Hacks . | . . . Terminals . | . . . Fabricators . | . . . Repair Stations . | . . . Recycling Units . | . . . Scanalyzers . | . . . Garrison Access . | . . . Data Cores Recovered . | . . . Used . | . . . Hacking Detections 2 | . 2 . Full Trace Events 1 | . 1 . Feedback Events . | . . . Feedback Blocked . | . . . Robot Schematics Acquired . | . . . Robots Built . | . . . Authchips . | . . . Time . | . . . Total Robot Build Rating . | . . . Part Schematics Acquired . | . . . Parts Built . | . . . Authchips . | . . . Time . | . . . Total Part Build Rating . | . . . Parts Repaired 1 | . 1 . Time 26 | . 26 . Parts Recycled . | . . . Recycled Matter . | . . . Retrieved Matter . | . . . Retrieved Components . | . . . Parts Scanalyzed . | . . . Part Schematics Acquired . | . . . Parts Damaged . | . . . Bothacking | -11 -10 -10 ------------ Run | Yrd Mat Sub Used RIF Installer . | . . . Robots Hacked . | . . . Non-combat . | . . . Combat . | . . . Robot Hacks Applied . | . . . Relay Couplers Released . | . . . Fabnet Peak Effective % . | . . . Robots Rewired . | . . . Allies Hacked . | . . . Hacks Repelled . | . . . Allies | -11 -10 -10 -------- Run | Yrd Mat Sub Total Allies . | . . . Largest Group . | . . . Highest-Rated Group . | . . . Highest-Rated Ally . | . . . Total Orders . | . . . Ally Attacks . | . . . Total Damage . | . . . Kills . | . . . Allies Corrupted . | . . . Allies Melted . | . . . Intel | -11 -10 -10 ------- Run | Yrd Mat Sub Robot Analysis Total . | . . . Derelict Logs Recovered 1 | . . 1 Drone Launches . | . . . Drone Recoveries . | . . . Exploration | -11 -10 -10 ------------- Run | Yrd Mat Sub Turns Passed 4922 | 74 2386 2462 Spaces Moved 1934 | 41 835 1058 Core 9 | 9 . . Treads . | . . . Legs 1925 | 32 835 1058 Wheels . | . . . Hover . | . . . Flight . | . . . Fastest Speed 50 | 50 120 120 Average Speed 158 | 104 140 175 Slowest Speed 190 | 120 190 190 Overloaded Moves . | . . . Propulsion Burnouts . | . . . Robots Hopped . | . . . Cave-ins Triggered . | . . . Exploration Rate (%) 46 | 3 97 38 Regions Visited 2 Branch Regions 1 Pre-discovered Areas 1 | . . 1 Known Exits Taken . | . . . Unknown Exits Taken 2 | 1 1 . Scrap Searched 9 | . . 9 Spaces Dug 51 | . 15 36 Terrain Destroyed 203 | . 29 174 Melee . | . . . Projectile 1 | . . 1 AOE 202 | . 29 173 Terrain Rammed . | . . . Walls Destroyed . | . . . Machines Disabled . | . . . Actions | -11 -10 -10 --------- Run | Yrd Mat Sub Total 3591 | 60 1933 1598 Wait 1474 | . 1009 465 Move 1932 | 40 834 1058 Hop . | . . . Pick Up 32 | 7 14 11 Fast Attach . | . . . Attach 11 | 7 . 4 Detach . | . . . Swap 31 | . 10 21 Drop 13 | . 7 6 Fire 98 | 6 59 33 Melee . | . . . Ram . | . . . Kick . | . . . Crush . | . . . Escape Stasis . | . . . Rewire . | . . . Trap . | . . . Miscellaneous . | . . . Route ------- -11/Scrapyard -10/Materials (discovered 5 exits: [*Mat x3] / [*Min] / [*Sub]) -10/Subcaves (discovered 1 exit: [*Rec]) History --------- Turn | Location | Event 4 | -11/Scrapyard | Discovered new exit (range 15) 75 | -11/Scrapyard | Entered Materials 298 | -10/Materials | Discovered new exit (range 11) 305 | -10/Materials | Build established: Mutant 493 | -10/Materials | Discovered new exit (range 16) 614 | -10/Materials | Discovered new exit (range 10) 1179 | -10/Materials | Discovered new exit (range 15) 2170 | -10/Materials | Discovered new exit (range 6) 2349 | -10/Materials | Repaired Ion Engine 2461 | -10/Materials | Entered Subcaves 2721 | -10/Subcaves | Shifting Twisted Machinery released Mak. Light Armor Plating 2737 | -10/Subcaves | Shifting Twisted Machinery released Flamer 2870 | -10/Subcaves | Core integrity fell below 50% 2974 | -10/Subcaves | Learned location of Recycling (-9) 3034 | -10/Subcaves | Core integrity fell below 20% 3345 | -10/Subcaves | Shifting Twisted Machinery released Mak. System Restoration Module 3350 | -10/Subcaves | Shifting Twisted Machinery released Shrapnel Trap 3500 | -10/Subcaves | A Subdweller sparked back to life 3500 | -10/Subcaves | A Subdweller sparked back to life 3500 | -10/Subcaves | A Subdweller sparked back to life 4106 | -10/Subcaves | Shifting Twisted Machinery released Sub. Laser 4321 | -10/Subcaves | Ambushed by Subdweller buried in earth 4323 | -10/Subcaves | Ambushed by Subdweller buried in earth 4586 | -10/Subcaves | Build established: Derelict-Mutant 4923 | -10/Subcaves | Discovered new exit (range 9) 4923 | -10/Subcaves | Destroyed by Autobeam Turret with Autobeam Last Messages --------------- Dropped Assault Rifle. Acquired 29 matter. S-10 Pest destroyed. ZC-V9V(R): "ARGHSUB!" ZC-V9V(R) destroyed. Machine disabled. GZ-P04(R): "THANKSYOU!" GZ-P04(R) destroyed. Acquired 18 matter. BI-YAO(R): "ARGHSUB!" Subatomizers dissect the Sub. Power Source. Subatomizers dissect the Assault Rifle. The unstable cave ceiling collapses. Subatomizers dissect the Sub. Power Source. The unstable cave ceiling collapses. Acquired Sub. Laser. Subatomizers dissect the Sub. Power Source, destroying it. Acquired 28 matter. EXIT=FOUND Map ----- +----------------------------------------------------+ | ?### ##???# ?????????#???????????????????? | | #### #???# #????????????????????????????? | | #???# # ????????????????????????????? | | ##???#" ???????????????????????????? | | ### #####????""" ??????????????????????????? | | ### #????????#"|## ##??????????????????????????? | | ## #??????######?#????????????????????????????? | | ## #??#####"##?#####??????????????????????????? | | ### ##?# ""### #??????????????????????????? | | ### #??# """" #?##???????????????????????? | | ??# ##??# ## ##??????????????????????? | | ??## ##### ##?????????????????????? | | ??## #?????????????????????? | | ??# ## #?????????????????????? | | ??# ##### ##?????????????????????? | | ?## ## ##????####??????????????????????? | | ?# & #### #????????##?????????????????????? | | ### ###??## #??#####<#####?????????????????? | | ## ###???# #??"" " """"#?????????????????? | | # #????## #?" " " "#?????????????????? | | ## ##????? #?? t t "#####?????????????? | | ### ###??? #?? % ; ##????????????? | | ## ########??? ##???????????? | | ## ###?? ! #???????????? | | #??#! ##??????????? | | ## ####@ #??????????? | | #### ## # % = #???????????? | | #??##### ! %% #???????????? | | ##?????# # # *% ##???????????? | | #??????### ###% ; ####????????????? | | #??????# #?#% # ##???????????????? | | #??????# ##"" ;#####????????????????? | | ## #??????#" && ##????????????????????? | | #####??????#"" " #?????????????????????? | | ###??????????##"" """#?????????????????????? | | ###????????????## " " #?????????????????????? | | ##??????????????# "" ## #?????????????????????? | | #???????????????# "" #?###?????????????????????? | | ???????????????# """"##?????????????????????????? | | ???????????????###""""#??????????????????????????? | | ?????????????????#""""#??????????????????????????? | | ????????????????? """""??????????????????????????? | | ???????????????????""????????????????????????????? | | ?????????????????????????????????????????????????? | | ?????????????????????????????????????????????????? | | ?????????????????????????????????????????????????? | | ?????????????????????????????????????????????????? | | ?????????????????????????????????????????????????? | | ?????????????????????????????????????????????????? | | ?????????????????????????????????????????????????? | +----------------------------------------------------+ Best States ------------- Heat Dissipation 25 Energy Generation 15 Energy Capacity 250 Matter Stores 300 Matter Capacity 300 Sight Range 16 Terrain Scan Density 10 Armor Coverage 150 Evasion (%) 55 Salvage Targeting 1 Item Schematics ----------------- None Robot Schematics ------------------ None Fabricated ------------ Nothing Alien Tech Used ----------------- None Achievements -------------- None Challenges ------------ None Game ------ Seed SmartbombAccelerationArchive Manual? 0 Play Time 00:24:10 Cumulative 15.9 hours Start 2024.04.06 @ 15:44:30 End 2024.04.06 @ 16:08:36 Sessions 1 Manual Loads 0 Difficulty Rogue Special Mode None Game No. 37 Rogue 36 Adventurer 1 Explorer 0 Win Type - Total 0 Types 0/0/0/0/0/0/0/0/0 Lore% 8 Gallery% 19 Achievement% 18 Wizard Run 0 Options --------- Layout 1 ASCII 0 Keyboard 0 Movement Mouse Keybinds 0 Fullscreen 2 Font 24/Terminus Map View 50x35 Zoom Use 0% Tactical HUD 0 Map Filters NONE Filters NONE Steam 1 RUN: 29ccc405-075b-41b7-9c2e-aee3189f22ad